Cogmind - Beta 13 @@@ ROGUE MODE // 2024.04.02 @ 16:22:15 Player: CogEmotions! Result: Destroyed by Y-54 Guardian with Flak Gun Performance ------------- Evolutions (3) 1500 Regions Visited (6) 1200 Robots Destroyed (76) 380 Value Destroyed (2561) 2561 Prototype IDs (6) 120 Alien Tech Used (0) 0 Bonus (810) 810 TOTAL SCORE: 6571 Bonus ------- High Alert Combat Kills 210 Entered Garrisons 200 Used RIF Installer 500 Friendly Fire -100 Cogmind --------- Core Integrity 0/700 Matter 118/300 Energy 71/160 System Corruption 2% Temperature Cool (12) Movement Core (200) Ox3 Location -7/Garrison Parts ------- > --- POWER (1) -------- Light Nuclear Core (fused) > --- PROPULSION (4) --- (None) > --- UTILITY (5) ------ Small Storage Unit Improved Signal Interpreter Hacking Suite > --- WEAPON (3) ------- (None) > --- INVENTORY (8) ---- Light Angular Momentum Engine Improved Cooling System Matter Filter Enhanced Autogun Enhanced Autogun Mining Claw Peak State ------------ > --- POWER ------------ Nuclear Core > --- PROPULSION ------- Light Treads Advanced Treads > --- UTILITY ---------- Large Storage Unit Compact Battery Improved Signal Interpreter Hardlight Generator Hacking Suite > --- WEAPON ----------- Lightning Gun Gatling Laser Heavy Particle Cannon > --- INVENTORY -------- Deuterium Engine Light Nuclear Core Carbon-fiber Leg Improved Propulsion Shielding Shield Generator Medium Laser Medium Laser Particle Gun Particle Gun Assault Rifle Advanced EMP Blaster Mining Claw Mining Claw Spear [Rating: 34] Favorites ----------- Power Light Nuclear Core Engine Heavy Ion Engine Power Core Light Nuclear Core Propulsion Light Treads Treads Light Treads Leg Aluminum Leg Wheel Wheel Hover Unit Hover Unit Flight Unit Cesium-ion Thruster Utility Large Storage Unit Device Shield Generator Storage Large Storage Unit Processor Improved Targeting Computer Hackware Hacking Suite Protection Core Shielding Weapon Advanced Beam Cannon Energy Gun Particle Gun Energy Cannon Advanced Beam Cannon Ballistic Gun Enhanced Autogun Ballistic Cannon Flak Cannon Launcher Grenade Launcher Special Weapon Remote Datajack Slashing Weapon Mining Claw Piercing Weapon Spear Build | -11 -10 -9 -9 -8 -7 -7 ------- Run | Yrd Mat Mat Min Mat Fac Gar Slots Evolved 6 | . . 2 . 2 2 . Power . | . . . . . . . Propulsion 2 | . . . . 2 . . Utility 3 | . . 2 . . 1 . Weapon 1 | . . . . . 1 . Parts Attached 99 | 6 13 10 . 25 44 1 Power 8 | 1 1 1 . 3 2 . Engine 4 | 1 . 1 . 1 1 . Core 4 | . 1 . . 2 1 . Reactor . | . . . . . . . Propulsion 21 | 2 4 . . 8 7 . Treads 7 | 2 2 . . 3 . . Leg 5 | . . . . 4 1 . Wheel 5 | . . . . . 5 . Hover 2 | . 2 . . . . . Flight 2 | . . . . 1 1 . Utility 25 | 1 2 6 . 3 13 . Device 13 | . 1 3 . 2 7 . Storage 4 | 1 1 . . . 2 . Processor 3 | . . 1 . 1 1 . Hackware 1 | . . . . . 1 . Protection 4 | . . 2 . . 2 . Artifact . | . . . . . . . Weapon 45 | 2 6 3 . 11 22 1 Energy Gun 14 | 2 2 . . 4 6 . Energy Cannon 5 | . 4 . . . 1 . Ballistic Gun 14 | . . 3 . 4 7 . Ballistic Cannon 1 | . . . . 1 . . Launcher 4 | . . . . 2 2 . Special Weapon 1 | . . . . . 1 . Impact Weapon . | . . . . . . . Slashing Weapon 3 | . . . . . 2 1 Piercing Weapon 3 | . . . . . 3 . Special Melee Weapon . | . . . . . . . Unidentified Prototypes 6 | . 1 2 . 3 . . Parts Lost 32 | . . . 1 10 19 2 Power 4 | . . . . 2 2 . Propulsion 8 | . . . 1 2 3 2 Utility 10 | . . . . 4 6 . Weapon 10 | . . . . 2 8 . Highest Loss Streak 15 | . . . 1 5 15 2 To Critical Strikes . | . . . . . . . Average Slot Usage (%) 85 | . 100 99 83 75 80 93 Engine 3 | . 5 1 11 3 . . Core 6 | . 8 9 . 4 6 7 Treads 13 | . 27 22 14 5 11 . Leg 3 | . . . . 12 . . Wheel 2 | . . . . . 6 27 Device 10 | . 14 19 11 2 9 6 Storage 9 | . 14 11 11 9 7 7 Processor 7 | . . 2 11 12 8 7 Hackware 1 | . . . . . 3 7 Protection 5 | . . 10 11 7 2 6 Energy Gun 5 | . 13 . . 3 8 . Energy Cannon 6 | . 14 20 . . 4 . Ballistic Gun 4 | . . 1 13 8 1 13 Launcher 1 | . . . . 3 1 . Naked Turns . | . . . . . . . Heaviest Build 46 | 14 35 39 37 40 46 41 Greatest Support 62 | 40 40 40 40 62 62 40 Greatest Overweight (x) 12 | . 2 . 1 12 9 1 Average Overweight (x) . | . . . . . . 1 Largest Inventory Capacity 15 | 8 15 15 15 15 15 8 Average Capacity 13 | 7 12 15 15 15 12 8 Most Carried 15 | 5 11 15 15 15 14 7 Average Carried 9 | . 5 10 14 10 7 6 Final Capacity 15 | 8 15 15 15 15 8 8 Final Carried 15 | . 11 13 15 7 7 6 Class Distribution -------------------- 65% | Mutant 10% | Gunner 10% | Scavenger-Mutant 7% | Tank 5% | Scavenger-Tank Dominant Class ---------------- Mutant | -10/Materials Mutant | -9/Materials Mutant | -9/Mines Mutant | -8/Materials Gunner | -7/Factory Scavenger-Tank | -7/Garrison Resources | -11 -10 -9 -9 -8 -7 -7 ----------- Run | Yrd Mat Mat Min Mat Fac Gar Matter Collected 1499 | 226 161 65 128 538 327 54 Remotely . | . . . . . . . Salvage Created 2683 | . 413 171 159 872 1014 54 Parts 174 | . 29 13 15 51 62 4 Haulers Intercepted 1 | . . . . 1 . . Recyclers Shooed . | . . . . . . . Parts Field Recycled . | . . . . . . . Retrieved Matter . | . . . . . . . Parts Self-Destructed . | . . . . . . . Prevented . | . . . . . . . Kills | -11 -10 -9 -9 -8 -7 -7 ------- Run | Yrd Mat Mat Min Mat Fac Gar Combat Hostiles Destroyed 52 | . 6 5 4 17 18 2 Guns 29 | . 2 . 4 12 9 2 Cannons 14 | . 4 5 . 3 2 . AOE 6 | . . . . 1 5 . Classes Destroyed 16 | . 4 2 . 4 6 . Worker 10 | . 3 . . 2 5 . Builder 1 | . . . . 1 . . Tunneler 1 | . . . . . 1 . Hauler 1 | . . . . 1 . . Recycler 4 | . 1 . . 2 1 . Mechanic 2 | . . . . . 2 . Operator 1 | . . . . . 1 . Watcher 4 | . 3 . . . 1 . Swarmer 13 | . . 2 . 3 6 2 Grunt 25 | . 6 1 4 9 5 . Brawler 1 | . . . . . 1 . Duelist 3 | . . . . . 3 . Sentry 4 | . . 2 . 2 . . Specialist 2 | . . . . 2 . . Hunter 2 | . . . . 1 1 . Programmer 2 | . . . . . 2 . Best Kill Streak 7 | . 7 2 2 6 5 1 Combat Bots Only 3 | . 2 2 2 3 3 1 Max Kills in Single Turn 3 | . 3 1 2 2 3 1 Gunslinging 1 | . . . 1 . . . Exploded 2 | . . . . 1 2 . Melee . | . . . . . . . Uniques/NPCs Destroyed . | . . . . . . . Combat | -11 -10 -9 -9 -8 -7 -7 -------- Run | Yrd Mat Mat Min Mat Fac Gar Hostile Shots Fired 393 | . 18 24 23 139 127 62 Missed 116 | . 3 9 7 42 38 17 Damage Taken 4715 | . 194 107 147 1665 2062 540 Core 1016 | . 33 14 21 244 550 154 Absorbed by Shields 526 | . 71 42 57 182 88 86 Redirected to Shielding 107 | . . 1 3 47 56 . Ignored by Resistances 60 | . . . . . 16 44 Core Remaining (%) 83 | 100 86 . 91 55 . . Volleys Fired 159 | . 28 12 15 53 40 11 Largest 3 | . 2 2 2 2 3 2 Hottest 210 | . 136 136 50 130 210 50 Shots Fired 314 | . 56 24 22 104 90 18 Gun 198 | . 18 . 22 82 58 18 Cannon 101 | . 38 24 . 15 24 . Launcher 15 | . . . . 7 8 . Special . | . . . . . . . Kinetic 113 | . . . 22 63 10 18 Thermal 175 | . 56 24 . 34 61 . Explosive 7 | . . . . 7 . . Electromagnetic 19 | . . . . . 19 . Robot Hit Streak 17 | . 7 3 7 17 8 2 Robot Miss Streak 8 | . 3 3 2 8 4 3 Penetration Max . | . . . . . . . Secondary Targets 1 | . . . 1 . . . Max Gunslinging Chain 1 | . . . 1 . . . Shots Hit Robots 176 | . 24 10 17 65 51 9 Core Hits 123 | . 17 5 7 48 43 3 Critical Kills . | . . . . . . . Critical Parts Destroyed . | . . . . . . . Critical Strikes 2 | . 1 . . . 1 . Burn 2 | . 1 . . . 1 . Melee Attacks 6 | . . . . . 5 1 Impact . | . . . . . . . Slashing 5 | . . . . . 4 1 Piercing 1 | . . . . . 1 . Sneak Attacks 3 | . . . . . 3 . Combat Hostiles . | . . . . . . . Follow-up Attacks . | . . . . . . . Damage Inflicted 5548 | . 801 216 276 1266 2823 166 Guns 1999 | . 101 . 276 872 609 141 Cannons 1122 | . 392 207 . 198 325 . Explosions 2233 | . 308 . . 194 1731 . Melee 183 | . . . . . 158 25 Ramming 11 | . . 9 . 2 . . Kinetic 1180 | . . . 276 690 73 141 Thermal 2599 | . 493 207 . 380 1519 . Explosive 868 | . 308 . . 194 366 . Electromagnetic 707 | . . . . . 707 . Impact . | . . . . . . . Slashing 157 | . . . . . 132 25 Piercing 26 | . . . . . 26 . Highest Corruption 15 | . . 2 2 15 2 2 Average Corruption 4 | . . 2 2 14 1 2 Corruption Purged . | . . . . . . . Corruption Blocked . | . . . . . . . Effects 41 | . . 2 5 21 10 3 Message Errors 10 | . . 1 1 5 2 1 Matter Fused 10 | . . 1 1 6 2 . Energy Discharges 5 | . . . . 2 2 1 Parts Rejected 1 | . . . 1 . . . Parts Fused 1 | . . . . . 1 . Data Loss (minor) 9 | . . . 2 4 2 1 Misfires 3 | . . . . 2 1 . Misdirections 1 | . . . . 1 . . Weapon Failures 1 | . . . . 1 . . Overload Shots . | . . . . . . . Overflow Damage 392 | . 27 . . . 365 . Projectiles . | . . . . . . . Explosions 392 | . 27 . . . 365 . Melee . | . . . . . . . Knockbacks 2 | . . . . 2 . . Impact . | . . . . . . . Kinetic 2 | . . . . 2 . . Secondary . | . . . . . . . Self-Inflicted Damage 538 | . 62 . . 97 379 . Shots 11 | . 1 . . 5 5 . Rammed 3 | . 1 2 . . . . Targets Rammed 4 | . 1 2 . 1 . . Kicked 1 | . . . . 1 . . Crushed . | . . . . . . . Highest Temperature 495 | . 495 168 36 268 360 12 Average Temperature 100 | . 125 68 14 90 111 5 Received Heat Transfer 938 | . 102 14 76 382 270 94 Effects 11 | . 7 . . . 4 . Shutdowns 2 | . 2 . . . . . Energy Bleed 2 | . 1 . . . 1 . Interference 4 | . 1 . . . 3 . Damage (major) 3 | . 3 . . . . . Siege Activations . | . . . . . . . Robots Corrupted 1 | . . . . . 1 . Combat Hostiles 1 | . . . . . 1 . Parts Fried 2 | . . . . . 2 . Impact Corruptions . | . . . . . . . Robots Melted 2 | . . . . 1 1 . Combat Hostiles 2 | . . . . 1 1 . Parts Melted 10 | . 1 2 . 4 3 . Heat Transferred 4602 | . 1073 370 . 925 2234 . Parts Sabotaged . | . . . . . . . Parts Stolen . | . . . . . . . Parts Stripped . | . . . . . . . Power Chain Reactions 3 | . . . . . 3 . Alert | -11 -10 -9 -9 -8 -7 -7 ------- Run | Yrd Mat Mat Min Mat Fac Gar Peak Influence 784 | . 258 187 213 183 784 454 Initial 369 | . . 108 68 4 82 369 Average 251 | . 63 126 144 78 581 411 Maximum Alert Level 3 | . 1 . 1 . 3 2 Low Security (%) 60 | 100 86 100 53 100 2 . Level 1 9 | . 13 . 46 . 4 33 Level 2 24 | . . . . . 73 66 Level 3 5 | . . . . . 19 . Level 4 . | . . . . . . . Level 5 . | . . . . . . . High Security . | . . . . . . . Max Security . | . . . . . . . Squads Dispatched 12 | . 2 1 . 5 4 . Investigation 4 | . 1 1 . 2 . . Extermination 3 | . . . . . 3 . Reinforcement 4 | . 1 . . 3 . . Assault 1 | . . . . . 1 . Garrison . | . . . . . . . Intercept . | . . . . . . . Searches Triggered . | . . . . . . . Construction Impeded . | . . . . . . . Haulers Reinforced . | . . . . . . . Active Scanning Responses . | . . . . . . . Cargo Convoy Interrupts . | . . . . . . . Stealth | -11 -10 -9 -9 -8 -7 -7 --------- Run | Yrd Mat Mat Min Mat Fac Gar Distress Signals . | . . . . . . . Communications Jammed . | . . . . . . . Distress Signals . | . . . . . . . Times Spotted 88 | . 11 9 5 21 29 13 Peak Tracking Total 9 | . 4 4 2 5 9 9 Tactical Retreats 9 | . . 4 1 . 1 3 Traps | -11 -10 -9 -9 -8 -7 -7 ------- Run | Yrd Mat Mat Min Mat Fac Gar Traps Triggered 8 | . 1 1 . 2 4 . Indirectly 2 | . . . . . 2 . Trap Hack Attempts . | . . . . . . . Triggered . | . . . . . . . Disarmed . | . . . . . . . Reprogrammed . | . . . . . . . Reused . | . . . . . . . Traps Extracted . | . . . . . . . Installed . | . . . . . . . Triggered 4 | . . . 1 . 3 . Machines | -11 -10 -9 -9 -8 -7 -7 ---------- Run | Yrd Mat Mat Min Mat Fac Gar Machines Disabled 29 | . 4 . . 3 22 . Max in Single Turn 12 | . 3 . . 1 12 . Machines Repaired . | . . . . . . . Machines Dismantled . | . . . . . . . Machines Sabotaged . | . . . . . . . Overloaded Fab Kills . | . . . . . . . Hacking | -11 -10 -9 -9 -8 -7 -7 --------- Run | Yrd Mat Mat Min Mat Fac Gar Machines Accessed 12 | . 3 3 . 2 4 . Terminals 11 | . 3 3 . 2 3 . Fabricators . | . . . . . . . Repair Stations . | . . . . . . . Recycling Units . | . . . . . . . Scanalyzers . | . . . . . . . Garrison Access 1 | . . . . . 1 . Total Hacks 33 | . 7 8 . 10 8 . Successful 20 | . 3 5 . 6 6 . Failed 12 | . 4 3 . 3 2 . Catastrophic . | . . . . . . . Database Lockouts 1 | . . . . 1 . . Manual 1 | . 1 . . . . . Terminals 31 | . 7 8 . 10 6 . Fabricators . | . . . . . . . Repair Stations . | . . . . . . . Recycling Units . | . . . . . . . Scanalyzers . | . . . . . . . Garrison Access 2 | . . . . . 2 . Terminal Hacks 19 | . 3 5 . 6 5 . Record 13 | . 2 3 . 6 2 . Robot Analysis 1 | . . 1 . . . . Open DSF 1 | . . . . . 1 . Emergency Access Points 1 | . . 1 . . . . Alert Level 3 | . 1 . . . 2 . Fabricator Hacks . | . . . . . . . Repair Station Hacks . | . . . . . . . Recycling Unit Hacks . | . . . . . . . Scanalyzer . | . . . . . . . Garrison Access Hacks 1 | . . . . . 1 . Unlock Access 1 | . . . . . 1 . Unauthorized Hacks . | . . . . . . . Terminals . | . . . . . . . Fabricators . | . . . . . . . Repair Stations . | . . . . . . . Recycling Units . | . . . . . . . Scanalyzers . | . . . . . . . Garrison Access . | . . . . . . . Data Cores Recovered . | . . . . . . . Used . | . . . . . . . Hacking Detections 8 | . 2 2 . 2 2 . Full Trace Events 1 | . . . . 1 . . Feedback Events . | . . . . . . . Feedback Blocked . | . . . . . . . Robot Schematics Acquired . | . . . . . . . Robots Built . | . . . . . . . Authchips . | . . . . . . . Time . | . . . . . . . Total Robot Build Rating . | . . . . . . . Part Schematics Acquired . | . . . . . . . Parts Built . | . . . . . . . Authchips . | . . . . . . . Time . | . . . . . . . Total Part Build Rating . | . . . . . . . Parts Repaired . | . . . . . . . Time . | . . . . . . . Parts Recycled . | . . . . . . . Recycled Matter . | . . . . . . . Retrieved Matter . | . . . . . . . Retrieved Components . | . . . . . . . Parts Scanalyzed . | . . . . . . . Part Schematics Acquired . | . . . . . . . Parts Damaged . | . . . . . . . Bothacking | -11 -10 -9 -9 -8 -7 -7 ------------ Run | Yrd Mat Mat Min Mat Fac Gar Used RIF Installer 1 | . . . . . . 1 Robots Hacked . | . . . . . . . Non-combat . | . . . . . . . Combat . | . . . . . . . Robot Hacks Applied . | . . . . . . . Relay Couplers Released . | . . . . . . . Fabnet Peak Effective % . | . . . . . . . Robots Rewired . | . . . . . . . Allies Hacked . | . . . . . . . Hacks Repelled . | . . . . . . . Allies | -11 -10 -9 -9 -8 -7 -7 -------- Run | Yrd Mat Mat Min Mat Fac Gar Total Allies . | . . . . . . . Largest Group . | . . . . . . . Highest-Rated Group . | . . . . . . . Highest-Rated Ally . | . . . . . . . Total Orders . | . . . . . . . Ally Attacks . | . . . . . . . Total Damage . | . . . . . . . Kills . | . . . . . . . Allies Corrupted . | . . . . . . . Allies Melted . | . . . . . . . Intel | -11 -10 -9 -9 -8 -7 -7 ------- Run | Yrd Mat Mat Min Mat Fac Gar Robot Analysis Total 1 | . . 1 . . . . Derelict Logs Recovered 1 | . . . 1 . . . Drone Launches . | . . . . . . . Drone Recoveries . | . . . . . . . Exploration | -11 -10 -9 -9 -8 -7 -7 ------------- Run | Yrd Mat Mat Min Mat Fac Gar Turns Passed 4530 | 90 623 687 524 1104 1365 137 Spaces Moved 2187 | 48 307 362 235 395 728 112 Core 23 | 17 . . . 5 1 . Treads 1453 | 31 300 362 235 142 383 . Legs 293 | . . . . 248 45 . Wheels 411 | . . . . . 299 112 Hover 7 | . 7 . . . . . Flight . | . . . . . . . Fastest Speed 50 | 50 160 160 160 120 80 95 Average Speed 161 | 121 160 160 209 187 147 95 Slowest Speed 650 | 160 176 160 240 650 500 95 Overloaded Moves . | . . . . . . . Propulsion Burnouts . | . . . . . . . Robots Hopped . | . . . . . . . Cave-ins Triggered 1 | . . . . 1 . . Exploration Rate (%) 27 | 4 53 30 41 25 21 16 Regions Visited 6 Branch Regions 1 Pre-discovered Areas 1 | . . . 1 . . . Known Exits Taken 1 | . . . . . 1 . Unknown Exits Taken 5 | 1 1 1 1 1 . . Scrap Searched . | . . . . . . . Spaces Dug 15 | . . . . 15 . . Terrain Destroyed 195 | . 32 . . 41 122 . Melee . | . . . . . . . Projectile 2 | . . . . 2 . . AOE 193 | . 32 . . 39 122 . Terrain Rammed . | . . . . . . . Walls Destroyed . | . . . . . . . Machines Disabled . | . . . . . . . Actions | -11 -10 -9 -9 -8 -7 -7 --------- Run | Yrd Mat Mat Min Mat Fac Gar Total 2878 | 80 378 446 256 658 934 126 Wait 313 | 22 8 45 5 159 73 1 Move 2181 | 47 306 361 234 394 727 112 Hop . | . . . . . . . Pick Up 82 | 5 17 9 2 15 34 . Fast Attach 4 | 1 . . . . 3 . Attach 53 | 5 1 5 . 14 27 1 Detach 3 | . . 2 . . 1 . Swap 42 | . 12 5 . 11 14 . Drop 32 | . 5 5 . 11 11 . Fire 159 | . 28 12 15 53 40 11 Melee 5 | . . . . . 4 1 Ram . | . . . . . . . Kick 1 | . . . . 1 . . Crush 3 | . 1 2 . . . . Escape Stasis . | . . . . . . . Rewire . | . . . . . . . Trap . | . . . . . . . Miscellaneous . | . . . . . . . Route ------- -11/Scrapyard -10/Materials (discovered 2 exits: *Mat x2) -9/Materials -9/Mines -8/Materials -7/Factory (discovered 2 exits: [*Fac] / Gar) -7/Garrison History --------- Turn | Location | Event 4 | -11/Scrapyard | Discovered new exit (range 15) 91 | -11/Scrapyard | Entered Materials 310 | -10/Materials | Build established: Mutant 355 | -10/Materials | Discovered new exit (range 15) 651 | -10/Materials | Discovered new exit (range 8) 714 | -10/Materials | Entered another Materials area 714 | -9/Materials | Evolved 2 slots: Utility x2 1322 | -9/Materials | Discovered new exit (range 12) 1401 | -9/Materials | Entered Mines 1531 | -9/Mines | Discovered new exit (range 13) 1644 | -9/Mines | Learned location of Storage (-7) 1925 | -9/Mines | Entered Materials 1925 | -8/Materials | Evolved 2 slots: Propulsion x2 2185 | -8/Materials | Lost 5 parts (1p1n1u2w) 2286 | -8/Materials | Central database locked down 2584 | -8/Materials | Crushed by falling debris 2584 | -8/Materials | System corruption reached 10% 2615 | -8/Materials | Lost 3 parts (1p1n1u) 2780 | -8/Materials | Discovered new exit (range 16) 3029 | -8/Materials | Entered Factory 3029 | -7/Factory | Evolved 2 slots: Utility x1, Weapon x1 3034 | -7/Factory | Identified exit to DSF 3829 | -7/Factory | First assault squad dispatched 3864 | -7/Factory | Build established: Tank 3977 | -7/Factory | Core integrity fell below 50% 4017 | -7/Factory | Lost 15 parts (2p2n3u8w) 4192 | -7/Factory | Discovered new exit (range 9) 4367 | -7/Factory | Identified exit to Garrison 4394 | -7/Factory | Entered Garrison 4430 | -7/Garrison | Triggered checkpoint 4463 | -7/Garrison | Installed Relay Interface Framework 4513 | -7/Garrison | Core integrity fell below 20% 4531 | -7/Garrison | Destroyed by Y-54 Guardian with Flak Gun Last Messages --------------- Relay Interface Framework installed. With RIF installed, you can review your current list of abilities via the new button at the top-right of the HUD, or Spacebar+i. System corrupted: Energy discharge (-35). System corrupted: Component data lost. S-27 Virus destroyed. Acquired 29 matter. Minigun severed. Wheel severed. Med. Reactive Plating severed. Garrison Door activated. Wheel severed. Minigun severed. Wheel destroyed. Shield Generator severed. Remote Datajack severed. Wheel destroyed. Mining Claw severed. [Achievement: 5k Club] Map ----- +----------------------------------------------------+ | ?????????????????????????????????????????????????? | | ?????????????????????????????????????????????????? | | ?????????????????????????????????????????????????? | | ?????????????????????????????????????????????????? | | ?????????????????????????????????????????????????? | | ?????????????????????????????????????????????????? | | ?????????????????????????????????????????????????? | | ?????????????????????????????????????????????????? | | ?????????????????????????????????????????????????? | | ?????????????????????????????????????????????????? | | ?????????????????????????????????????????????????? | | ?????????????????????????????????????????????????? | | ?????????????????????????????????????????????????? | | ?????????????????????????????????????????????????? | | ??????????????????????????????????????? ???????? | | ?????????????????????????????????????? ???????? | | ????????????????????????????????????? #???????? | | ????????????????????????????????????# #???????? | | ??????????????????????????????????? ???????? | | ??????????????????????????????????? ????????? | | ?????????????????????????????????? ??????????? | | ????????????????????????????????? ????????????? | | ???????????????????????????????? #?????#???????? | | ?????????????????????########### ## ##??????? | | ?????????????????????# |c =[ Y ^^ g ???? | | ?????????????????????# c@c=[! x g g ???? | | ?????????????????????# ###+#### ???? | | ?????????????????????# #?# #????? ##" ##??????? | | ?????????????????????# #?# #????????????????????? | | ???????????########### #?# #????????????????????? | | ???????????# ==[ = #? ????????????????????? | | ?????????### ######### #?###????????????????????? | | ?????????# #???????# #????????????????????????? | | ?????????# #???????# ######### #?????????????? | | ?????????# #???????# #?????????????? | | ?????????### #???????# #?????????????? | | ???????????# #???????# ###########??????????????? | | ?#######???# #???????# #????????????????????????? | | ?#"""" ##### ######??# #????????????????????????? | | ?#" #??# #????????????????????????? | | ?#"""" ####### ##??# #????????????????????????? | | ?#######????#"""""#??# #????????????????????????? | | ????????????#######??# #????????????????????????? | | ?????????????????????# #????????????????????????? | | ?????????????????????# #????????????????????????? | | ?????????????????????# #????????????????????????? | | ????????????########## #????????????????????????? | | ????????????# #????????????????????????? | | ????????????# #????????????????????????? | | ????????????# #########????????????????????????? | +----------------------------------------------------+ Best States ------------- Heat Dissipation 48 Energy Generation 14 Energy Capacity 440 Matter Stores 300 Matter Capacity 300 Sight Range 16 Terrain Scan Density 10 ECM Strength 2 Armor Coverage 225 Resistance: KI 30 Core Shielding 20 Propulsion Shielding 66 Evasion (%) 55 Targeting Accuracy 6 Recoil Reduction 7 Matter Filtering 30 Offensive Hacking 10 Item Schematics ----------------- None Robot Schematics ------------------ None Fabricated ------------ Nothing Alien Tech Used ----------------- None Achievements -------------- 5k Club It Was An Accident, I Swear Librarian Made in Tau Ceti IV Power Corrupts Significant Disruption System Compromised Unlikely Earthworm Challenges ------------ None Game ------ Seed LaserReactiveBrace Manual? 0 Play Time 00:59:34 Cumulative 3.9 hours Start 2024.04.02 @ 14:15:58 End 2024.04.02 @ 16:22:15 Sessions 1 Manual Loads 0 Difficulty Rogue Special Mode None Game No. 7 Rogue 7 Adventurer 0 Explorer 0 Win Type - Total 0 Types 0/0/0/0/0/0/0/0/0 Lore% 2 Gallery% 9 Achievement% 8 Wizard Run 0 Options --------- Layout 1 ASCII 0 Keyboard 0 Movement Mouse Keybinds 0 Fullscreen 1 Font 24/Smallcaps Map View 50x35 Zoom Use 0% Tactical HUD 0 Map Filters NONE Filters NONE Steam 1 RUN: 58534b51-0198-440e-822a-8d2375e25876